[Event "GrandPrix_30.05"]
[Site "Chess.com"]
[Date "2020.05.30"]
[Round "4"]
[White "weplaychess09"]
[Black "Firegrizzly"]
[Result "1-0"]
[WhiteElo "2092"]
[BlackElo "2190"]
[TimeControl "600+2"]
[EndTime "9:51:22 PDT"]
[Termination "weplaychess09 won by resignation"]

1. d4 {[%clk 0:10:01.9]} 1... Nf6 {[%clk 0:09:59]} 2. c4 {[%clk 0:10:03.4]} 2...
g6 {[%clk 0:09:57.4]} 3. Nc3 {[%clk 0:10:03.9]} 3... Bg7 {[%clk 0:09:58.9]} 4.
e4 {[%clk 0:10:04.4]} 4... O-O {[%clk 0:10:00.1]} 5. Nf3 {[%clk 0:10:05.1]} 5...
d6 {[%clk 0:10:00.8]} 6. Be2 {[%clk 0:10:05.6]} 6... Nbd7 {[%clk 0:09:53.1]} 7.
Be3 {[%clk 0:10:04.3]} 7... e5 {[%clk 0:09:50.6]} 8. d5 {[%clk 0:10:04.7]} 8...
Ng4 {[%clk 0:09:50.1]} 9. Bg5 {[%clk 0:10:04.9]} 9... f6 {[%clk 0:09:50.2]} 10.
Bh4 {[%clk 0:10:05.6]} 10... h5 {[%clk 0:09:44]} 11. Nd2 {[%clk 0:10:04.9]}
11... Nh6 {[%clk 0:09:43.5]} 12. f3 {[%clk 0:10:05]} 12... c5 {[%clk 0:09:14.9]}
13. a3 {[%clk 0:09:49]} 13... Nf7 {[%clk 0:09:11]} 14. O-O {[%clk 0:09:46.8]}
14... Bh6 {[%clk 0:09:10.4]} 15. b4 {[%clk 0:09:46.1]} 15... Be3+ {[%clk
0:09:07.8]} 16. Bf2 {[%clk 0:09:46.4]} 16... Bd4 {[%clk 0:09:05.3]} 17. Rc1
{[%clk 0:09:34.3]} 17... f5 {[%clk 0:08:51.4]} 18. exf5 {[%clk 0:09:30.7]} 18...
gxf5 {[%clk 0:08:51.5]} 19. f4 {[%clk 0:09:31.2]} 19... e4 {[%clk 0:08:39.2]}
20. Bxd4 {[%clk 0:09:27.3]} 20... cxd4 {[%clk 0:08:39.5]} 21. Nb5 {[%clk
0:09:28.2]} 21... Qb6 {[%clk 0:08:01.4]} 22. c5 {[%clk 0:09:10.6]} 22... dxc5
{[%clk 0:08:00.2]} 23. bxc5 {[%clk 0:09:11.8]} 23... Nxc5 {[%clk 0:07:58.1]} 24.
Nxd4 {[%clk 0:09:10.2]} 24... Nd3 {[%clk 0:07:52.9]} 25. Nb3 {[%clk 0:09:06.9]}
25... Nxc1 {[%clk 0:07:52.3]} 26. Qxc1 {[%clk 0:09:07.8]} 26... Bd7 {[%clk
0:07:34.8]} 27. Kh1 {[%clk 0:09:02.5]} 27... Nh6 {[%clk 0:06:48.3]} 28. Bxh5
{[%clk 0:08:55.5]} 28... Qd6 {[%clk 0:06:27]} 29. Rd1 {[%clk 0:08:25.8]} 29...
Rac8 {[%clk 0:06:23.1]} 30. Qe3 {[%clk 0:08:25.7]} 30... Kh7 {[%clk 0:06:11.6]}
31. Ne2 {[%clk 0:07:05.4]} 31... Ba4 {[%clk 0:05:57.6]} 32. Qxa7 {[%clk
0:06:46.4]} 32... Qa6 {[%clk 0:05:44.3]} 33. Qxa6 {[%clk 0:06:44.9]} 33... bxa6
{[%clk 0:05:44.4]} 34. Rb1 {[%clk 0:06:37.8]} 34... Rb8 {[%clk 0:05:33.9]} 35.
Nd2 {[%clk 0:06:36.4]} 35... Rxb1+ {[%clk 0:05:31.6]} 36. Nxb1 {[%clk
0:06:37.4]} 36... Bb3 {[%clk 0:05:25.7]} 37. Nbc3 {[%clk 0:06:13.1]} 37... Rd8
{[%clk 0:05:24.2]} 38. h3 {[%clk 0:06:09.4]} 38... Bxd5 {[%clk 0:05:20.9]} 39.
g4 {[%clk 0:06:10.5]} 39... e3+ {[%clk 0:04:21.2]} 40. Kh2 {[%clk 0:06:09.4]}
40... Bf3 {[%clk 0:04:11.9]} 41. Kg3 {[%clk 0:06:09.8]} 41... fxg4 {[%clk
0:03:45.2]} 42. hxg4 {[%clk 0:06:09.3]} 42... Bxg4 {[%clk 0:03:35.9]} 43. Bxg4
{[%clk 0:06:05.4]} 43... Rg8 {[%clk 0:03:36.7]} 44. Kf3 {[%clk 0:06:03.1]} 44...
Nxg4 {[%clk 0:03:37.6]} 45. Nd5 {[%clk 0:06:03.4]} 45... Rg7 {[%clk 0:03:09.3]}
46. Nec3 {[%clk 0:05:39.7]} 46... Kh6 {[%clk 0:02:26.7]} 47. Ne4 {[%clk
0:05:28.8]} 47... Rd7 {[%clk 0:02:06.5]} 48. Nec3 {[%clk 0:05:06.2]} 48... Kh5
{[%clk 0:01:55.2]} 49. Ke2 {[%clk 0:04:43.3]} 49... Kh4 {[%clk 0:01:46.3]} 50.
Nxe3 {[%clk 0:04:34.6]} 50... Re7 {[%clk 0:01:27.4]} 51. Nd5 {[%clk 0:04:33.9]}
51... Re4 {[%clk 0:01:27.7]} 52. Kf3 {[%clk 0:04:28.3]} 52... Rd4 {[%clk
0:01:23.4]} 53. Nf5+ {[%clk 0:04:28.1]} 53... Kh3 {[%clk 0:01:24.1]} 54. Nxd4
{[%clk 0:04:28.5]} 54... Kh4 {[%clk 0:01:24.5]} 55. Ne3 {[%clk 0:04:25.1]} 55...
Nh6 {[%clk 0:01:12.5]} 56. Nef5+ {[%clk 0:04:24.9]} 56... Nxf5 {[%clk
0:01:12.4]} 57. Nxf5+ {[%clk 0:04:25.8]} 57... Kh5 {[%clk 0:01:14.3]} 58. Ke4
{[%clk 0:04:27.1]} 58... Kg6 {[%clk 0:01:12.7]} 59. Ke5 {[%clk 0:04:28.5]} 59...
Kf7 {[%clk 0:01:14]} 60. Nd6+ {[%clk 0:04:29.6]} 60... Ke7 {[%clk 0:01:14.6]}
61. f5 {[%clk 0:04:30.9]} 61... Kf8 {[%clk 0:01:15]} 62. f6 {[%clk 0:04:32.1]}
62... a5 {[%clk 0:01:16.7]} 63. a4 {[%clk 0:04:32.7]} 63... Kg8 {[%clk
0:01:16.8]} 64. Ke6 {[%clk 0:04:29.8]} 64... Kf8 {[%clk 0:01:18.7]} 65. f7
{[%clk 0:04:30.7]} 1-0

[Event "GrandPrix_30.05"]
[Site "Chess.com"]
[Date "2020.05.30"]
[Round "4"]
[White "grunbergmihai"]
[Black "Velis23"]
[Result "1-0"]
[WhiteElo "2288"]
[BlackElo "2126"]
[TimeControl "600+2"]
[EndTime "9:51:37 PDT"]
[Termination "grunbergmihai won by resignation"]

1. Nf3 {[%clk 0:10:01.9]} 1... Nf6 {[%clk 0:09:55.7]} 2. c4 {[%clk 0:09:57.4]}
2... c6 {[%clk 0:09:55.7]} 3. g3 {[%clk 0:09:56.9]} 3... d5 {[%clk 0:09:56.8]}
4. Bg2 {[%clk 0:09:58.7]} 4... Bf5 {[%clk 0:09:57.6]} 5. O-O {[%clk 0:09:57.2]}
5... e6 {[%clk 0:09:58.6]} 6. d3 {[%clk 0:09:57.6]} 6... h6 {[%clk 0:09:59]} 7.
cxd5 {[%clk 0:09:51.6]} 7... exd5 {[%clk 0:09:48.6]} 8. Nc3 {[%clk 0:09:47]}
8... Be7 {[%clk 0:09:42.9]} 9. Qb3 {[%clk 0:09:45.2]} 9... Qb6 {[%clk
0:09:39.1]} 10. Qc2 {[%clk 0:09:43.7]} 10... O-O {[%clk 0:09:31.4]} 11. e4
{[%clk 0:09:30.5]} 11... dxe4 {[%clk 0:09:28]} 12. dxe4 {[%clk 0:09:31.5]} 12...
Be6 {[%clk 0:09:20.3]} 13. Be3 {[%clk 0:09:30.2]} 13... Qa5 {[%clk 0:09:03.2]}
14. Nd4 {[%clk 0:09:01.4]} 14... Bc4 {[%clk 0:08:01.9]} 15. Rfd1 {[%clk
0:08:42.2]} 15... Ng4 {[%clk 0:07:58.9]} 16. Bf4 {[%clk 0:08:32.6]} 16... Bf6
{[%clk 0:07:39.8]} 17. h3 {[%clk 0:07:49.2]} 17... Ne5 {[%clk 0:07:35.9]} 18.
Nf5 {[%clk 0:07:39.3]} 18... Nbd7 {[%clk 0:06:52.9]} 19. a3 {[%clk 0:06:51.5]}
19... Qb6 {[%clk 0:04:55.2]} 20. b4 {[%clk 0:06:38.5]} 20... a5 {[%clk 0:04:44]}
21. Be3 {[%clk 0:05:47.3]} 21... Qa6 {[%clk 0:04:41.7]} 22. bxa5 {[%clk
0:03:54.4]} 22... Rfd8 {[%clk 0:03:40.1]} 23. Nd6 {[%clk 0:03:45.2]} 23... Bd3
{[%clk 0:03:25.6]} 24. Qb3 {[%clk 0:03:38.2]} 24... Rab8 {[%clk 0:02:34.7]} 25.
f4 {[%clk 0:03:07]} 25... Bc4 {[%clk 0:02:33.4]} 26. Qc2 {[%clk 0:02:44.7]}
26... Bd3 {[%clk 0:01:34.2]} 27. Qd2 {[%clk 0:02:45]} 27... Nf8 {[%clk
0:01:12.1]} 28. fxe5 {[%clk 0:02:44.4]} 28... Bxe5 {[%clk 0:01:12.1]} 29. Qxd3
{[%clk 0:02:37]} 29... Qxd3 {[%clk 0:01:03]} 30. Rxd3 {[%clk 0:02:37.7]} 30...
Bxd6 {[%clk 0:01:02.1]} 31. Rad1 {[%clk 0:02:32.5]} 31... Bc7 {[%clk 0:01:01.3]}
32. Rxd8 {[%clk 0:02:32.3]} 32... Rxd8 {[%clk 0:01:02]} 33. Rxd8 {[%clk
0:02:31.5]} 33... Bxd8 {[%clk 0:01:03.4]} 34. Bb6 {[%clk 0:02:22.8]} 34... Be7
{[%clk 0:00:59.1]} 35. a4 {[%clk 0:02:19.6]} 35... Ne6 {[%clk 0:00:59.3]} 36. e5
{[%clk 0:02:14.5]} 36... Bb4 {[%clk 0:00:57.6]} 37. Ne4 {[%clk 0:02:12.9]} 37...
c5 {[%clk 0:00:54.8]} 38. Nd6 {[%clk 0:02:08.2]} 1-0

[Event "GrandPrix_30.05"]
[Site "Chess.com"]
[Date "2020.05.30"]
[Round "4"]
[White "tacticthunder"]
[Black "Murad_Ibrahimli"]
[Result "0-1"]
[WhiteElo "2213"]
[BlackElo "2557"]
[TimeControl "600+2"]
[EndTime "9:51:43 PDT"]
[Termination "Murad_Ibrahimli won by checkmate"]

1. e4 {[%clk 0:09:07.2]} 1... c5 {[%clk 0:09:56.1]} 2. Nf3 {[%clk 0:09:05.8]}
2... d6 {[%clk 0:09:55.8]} 3. d4 {[%clk 0:09:04.4]} 3... cxd4 {[%clk 0:09:55.3]}
4. Nxd4 {[%clk 0:09:06.3]} 4... Nf6 {[%clk 0:09:56.2]} 5. Nc3 {[%clk 0:09:07.3]}
5... a6 {[%clk 0:09:57.5]} 6. h3 {[%clk 0:09:04.1]} 6... g6 {[%clk 0:09:55.7]}
7. g4 {[%clk 0:09:03.4]} 7... Bg7 {[%clk 0:09:54.7]} 8. Bg2 {[%clk 0:09:03.4]}
8... O-O {[%clk 0:09:52.3]} 9. O-O {[%clk 0:09:03.6]} 9... Nc6 {[%clk 0:09:50]}
10. Be3 {[%clk 0:08:50.3]} 10... Bd7 {[%clk 0:09:47.8]} 11. Qe2 {[%clk
0:08:48.5]} 11... Rc8 {[%clk 0:09:18.8]} 12. Nxc6 {[%clk 0:08:43.3]} 12... Bxc6
{[%clk 0:09:18]} 13. Rad1 {[%clk 0:08:42.5]} 13... Qa5 {[%clk 0:09:16.3]} 14. a3
{[%clk 0:08:42.3]} 14... b5 {[%clk 0:09:15.5]} 15. Bd2 {[%clk 0:08:11.6]} 15...
Qb6 {[%clk 0:09:10.1]} 16. g5 {[%clk 0:07:50.9]} 16... Nd7 {[%clk 0:09:03.3]}
17. Be3 {[%clk 0:07:47]} 17... Qb7 {[%clk 0:09:01.9]} 18. Bd4 {[%clk 0:07:39]}
18... Ne5 {[%clk 0:08:48.4]} 19. Nd5 {[%clk 0:07:26.1]} 19... Nc4 {[%clk
0:08:33.7]} 20. Bxg7 {[%clk 0:06:59.2]} 20... Kxg7 {[%clk 0:08:31.8]} 21. c3
{[%clk 0:06:58.4]} 21... Rfe8 {[%clk 0:08:03]} 22. Kh1 {[%clk 0:06:37.2]} 22...
Bxd5 {[%clk 0:07:41.5]} 23. Rxd5 {[%clk 0:06:01.5]} 23... e6 {[%clk 0:07:28.2]}
24. Rdd1 {[%clk 0:05:55.9]} 24... Rcd8 {[%clk 0:07:22.1]} 25. f4 {[%clk
0:05:53.5]} 25... d5 {[%clk 0:07:18.4]} 26. b3 {[%clk 0:03:43.9]} 26... Nd6
{[%clk 0:06:51.8]} 27. exd5 {[%clk 0:03:38.5]} 27... exd5 {[%clk 0:06:50.5]} 28.
Qf2 {[%clk 0:03:38.9]} 28... Nf5 {[%clk 0:06:46.5]} 29. Rfe1 {[%clk 0:03:32.4]}
29... Qc7 {[%clk 0:06:36.2]} 30. Qd2 {[%clk 0:03:27.4]} 30... Rxe1+ {[%clk
0:06:27.9]} 31. Rxe1 {[%clk 0:03:17.1]} 31... d4 {[%clk 0:06:28.6]} 32. Rc1
{[%clk 0:02:42.5]} 32... d3 {[%clk 0:05:05.4]} 33. c4 {[%clk 0:02:39.2]} 33...
Ng3+ {[%clk 0:04:56.2]} 34. Kh2 {[%clk 0:02:38.9]} 34... Ne2 {[%clk 0:04:57.3]}
35. Rf1 {[%clk 0:02:20.9]} 35... bxc4 {[%clk 0:04:55.2]} 36. bxc4 {[%clk
0:02:20.7]} 36... Qxc4 {[%clk 0:04:54.2]} 37. Qa5 {[%clk 0:02:21]} 37... Qd4
{[%clk 0:04:27.2]} 38. Qd2 {[%clk 0:01:57.4]} 38... Qc3 {[%clk 0:04:23.4]} 39.
Qe3 {[%clk 0:01:53.4]} 39... Qd4 {[%clk 0:04:15]} 40. Qd2 {[%clk 0:01:36.2]}
40... Rc8 {[%clk 0:04:14]} 41. h4 {[%clk 0:00:34.1]} 41... Rc2 {[%clk
0:04:10.5]} 42. Qa5 {[%clk 0:00:21.1]} 42... Nxf4 {[%clk 0:04:09.2]} 43. h5
{[%clk 0:00:19.9]} 43... Rxg2+ {[%clk 0:04:04.1]} 44. Kh1 {[%clk 0:00:21.2]}
44... gxh5 {[%clk 0:03:40.4]} 45. Qxa6 {[%clk 0:00:09.6]} 45... Rg4 {[%clk
0:03:40.4]} 46. Qh6+ {[%clk 0:00:05]} 46... Kg8 {[%clk 0:03:39.8]} 47. Re1
{[%clk 0:00:04.5]} 47... Rh4# {[%clk 0:03:39]} 0-1

[Event "GrandPrix_30.05"]
[Site "Chess.com"]
[Date "2020.05.30"]
[Round "4"]
[White "woodhy"]
[Black "DinaBelenkaya"]
[Result "1-0"]
[WhiteElo "2194"]
[BlackElo "1624"]
[TimeControl "600+2"]
[EndTime "9:51:43 PDT"]
[Termination "woodhy won by resignation"]

1. e4 {[%clk 0:10:01.9]} 1... d5 {[%clk 0:09:58.6]} 2. exd5 {[%clk 0:10:02.4]}
2... Qxd5 {[%clk 0:10:00.5]} 3. Nc3 {[%clk 0:10:04.1]} 3... Qa5 {[%clk
0:10:00.4]} 4. d4 {[%clk 0:10:03.2]} 4... Nf6 {[%clk 0:09:54.2]} 5. Bd3 {[%clk
0:10:02]} 5... Bf5 {[%clk 0:09:30]} 6. Bc4 {[%clk 0:09:49.7]} 6... e6 {[%clk
0:09:26.8]} 7. Ne2 {[%clk 0:09:49.7]} 7... Nc6 {[%clk 0:09:13.7]} 8. O-O {[%clk
0:09:45.8]} 8... Be7 {[%clk 0:08:12.3]} 9. a3 {[%clk 0:09:29.3]} 9... a6 {[%clk
0:07:08.4]} 10. Be3 {[%clk 0:08:18]} 10... Bg6 {[%clk 0:05:34.1]} 11. d5 {[%clk
0:08:08.3]} 11... Nxd5 {[%clk 0:05:20.6]} 12. Bxd5 {[%clk 0:08:06.1]} 12... exd5
{[%clk 0:04:34.9]} 13. b4 {[%clk 0:08:02.7]} 13... Nxb4 {[%clk 0:03:11.7]} 14.
axb4 {[%clk 0:08:04.6]} 14... Qxb4 {[%clk 0:03:13.2]} 15. Nxd5 {[%clk
0:07:55.8]} 15... Qc4 {[%clk 0:03:02.8]} 16. Nxe7 {[%clk 0:07:04.4]} 16... Kxe7
{[%clk 0:03:04]} 17. Nf4 {[%clk 0:06:37.7]} 17... Rhd8 {[%clk 0:02:29.4]} 18.
Qg4 {[%clk 0:06:17.5]} 18... Qc6 {[%clk 0:01:43.1]} 19. Nxg6+ {[%clk 0:05:44.4]}
19... hxg6 {[%clk 0:01:42.7]} 20. Ra5 {[%clk 0:05:25.9]} 20... Kf8 {[%clk
0:01:32.4]} 21. h3 {[%clk 0:05:10.9]} 21... b5 {[%clk 0:01:11.2]} 22. Rfa1
{[%clk 0:04:54.1]} 22... Rd5 {[%clk 0:00:47.6]} 23. Qf3 {[%clk 0:03:28.9]} 23...
Kg8 {[%clk 0:00:44.7]} 24. Rxa6 {[%clk 0:03:10.1]} 24... Rxa6 {[%clk 0:00:42.2]}
25. Rxa6 {[%clk 0:03:12]} 25... Qd7 {[%clk 0:00:05.8]} 26. Ra1 {[%clk
0:03:08.2]} 26... c5 {[%clk 0:00:05.7]} 27. Qe4 {[%clk 0:02:52.8]} 27... f5
{[%clk 0:00:02.8]} 28. Ra8+ {[%clk 0:02:35.5]} 28... Kf7 {[%clk 0:00:03.5]} 29.
Qf4 {[%clk 0:02:35.3]} 29... c4 {[%clk 0:00:02.8]} 30. Ra7 {[%clk 0:02:33.2]}
30... Rd1+ {[%clk 0:00:04]} 31. Kh2 {[%clk 0:02:33.3]} 31... g5 {[%clk
0:00:04.8]} 32. Qxf5+ {[%clk 0:02:29.7]} 32... Kg8 {[%clk 0:00:04.5]} 33. Rxd7
{[%clk 0:02:29]} 1-0

[Event "GrandPrix_30.05"]
[Site "Chess.com"]
[Date "2020.05.30"]
[Round "4"]
[White "Sanan_Sjugirov"]
[Black "AsadliVugar"]
[Result "1-0"]
[WhiteElo "2697"]
[BlackElo "2509"]
[TimeControl "600+2"]
[EndTime "9:51:45 PDT"]
[Termination "Sanan_Sjugirov won by resignation"]

1. e4 {[%clk 0:09:47.4]} 1... e5 {[%clk 0:09:56.9]} 2. Nf3 {[%clk 0:09:47.6]}
2... Nc6 {[%clk 0:09:58.4]} 3. Bb5 {[%clk 0:09:48]} 3... Nf6 {[%clk 0:09:59.4]}
4. d3 {[%clk 0:09:42]} 4... Bc5 {[%clk 0:10:00.2]} 5. c3 {[%clk 0:09:40]} 5...
O-O {[%clk 0:09:58.1]} 6. O-O {[%clk 0:09:32]} 6... Re8 {[%clk 0:09:56.8]} 7.
Bg5 {[%clk 0:09:29]} 7... h6 {[%clk 0:09:45.5]} 8. Bh4 {[%clk 0:09:28.1]} 8...
Be7 {[%clk 0:09:42.6]} 9. Bg3 {[%clk 0:09:17.5]} 9... d6 {[%clk 0:09:38.2]} 10.
Nbd2 {[%clk 0:09:15.2]} 10... Bd7 {[%clk 0:09:19.2]} 11. Re1 {[%clk 0:09:07.8]}
11... Bf8 {[%clk 0:09:19.1]} 12. Ba4 {[%clk 0:08:58.2]} 12... g6 {[%clk
0:09:13.4]} 13. d4 {[%clk 0:08:47.8]} 13... Nh5 {[%clk 0:08:41.7]} 14. Nc4
{[%clk 0:06:28.2]} 14... Nxg3 {[%clk 0:07:28.3]} 15. hxg3 {[%clk 0:06:30.1]}
15... exd4 {[%clk 0:07:29.6]} 16. cxd4 {[%clk 0:05:59.6]} 16... Bg7 {[%clk
0:07:30.3]} 17. d5 {[%clk 0:05:12]} 17... Nb8 {[%clk 0:07:10]} 18. Bxd7 {[%clk
0:03:48.7]} 18... Nxd7 {[%clk 0:07:11.1]} 19. Qc2 {[%clk 0:03:49.3]} 19... a5
{[%clk 0:06:57]} 20. Rac1 {[%clk 0:03:39.8]} 20... Nc5 {[%clk 0:05:20.6]} 21. b3
{[%clk 0:03:17.6]} 21... b6 {[%clk 0:04:28.2]} 22. a3 {[%clk 0:03:01.8]} 22...
b5 {[%clk 0:04:02.9]} 23. Ncd2 {[%clk 0:02:50.5]} 23... b4 {[%clk 0:04:03.9]}
24. axb4 {[%clk 0:02:49.9]} 24... axb4 {[%clk 0:04:05.2]} 25. e5 {[%clk
0:02:51]} 25... Qd7 {[%clk 0:03:51.2]} 26. Re3 {[%clk 0:02:32.3]} 26... Qg4
{[%clk 0:03:14.7]} 27. Ne4 {[%clk 0:02:03.4]} 27... Ra5 {[%clk 0:02:46.1]} 28.
Rce1 {[%clk 0:01:34.2]} 28... Rea8 {[%clk 0:02:43.7]} 29. exd6 {[%clk
0:01:29.1]} 29... cxd6 {[%clk 0:02:41.9]} 30. Nxd6 {[%clk 0:01:25.9]} 30... Qd7
{[%clk 0:02:39.6]} 31. Ne8 {[%clk 0:01:00.1]} 31... Bh8 {[%clk 0:02:36.3]} 32.
Re7 {[%clk 0:00:49.7]} 32... Qxd5 {[%clk 0:02:33.2]} 33. Nc7 {[%clk 0:00:50.5]}
33... Ra2 {[%clk 0:02:04]} 34. Qxa2 {[%clk 0:00:42.7]} 1-0

[Event "GrandPrix_30.05"]
[Site "Chess.com"]
[Date "2020.05.30"]
[Round "4"]
[White "klimkoj"]
[Black "MilosJi"]
[Result "1-0"]
[WhiteElo "2114"]
[BlackElo "1971"]
[TimeControl "600+2"]
[EndTime "9:51:57 PDT"]
[Termination "klimkoj won by checkmate"]

1. e4 {[%clk 0:10:01.9]} 1... c5 {[%clk 0:09:59.8]} 2. Nf3 {[%clk 0:10:02.4]}
2... Nc6 {[%clk 0:09:59.9]} 3. d4 {[%clk 0:10:03.3]} 3... cxd4 {[%clk 0:10:00]}
4. Nxd4 {[%clk 0:10:05.2]} 4... g6 {[%clk 0:10:01.3]} 5. Nc3 {[%clk 0:10:04.8]}
5... Bg7 {[%clk 0:10:01.7]} 6. Be3 {[%clk 0:10:06]} 6... Nf6 {[%clk 0:10:02]} 7.
Nxc6 {[%clk 0:10:06.7]} 7... bxc6 {[%clk 0:10:02.1]} 8. e5 {[%clk 0:10:08]} 8...
Ng8 {[%clk 0:10:03]} 9. Bd4 {[%clk 0:10:08.9]} 9... Qc7 {[%clk 0:10:02.7]} 10.
e6 {[%clk 0:10:09.7]} 10... f6 {[%clk 0:10:00.4]} 11. exd7+ {[%clk 0:10:09.6]}
11... Bxd7 {[%clk 0:10:01.5]} 12. Bc4 {[%clk 0:10:10.1]} 12... Nh6 {[%clk
0:09:55.9]} 13. O-O {[%clk 0:10:09]} 13... Nf7 {[%clk 0:09:55.6]} 14. Re1 {[%clk
0:10:06.5]} 14... Ne5 {[%clk 0:09:12.5]} 15. Bxe5 {[%clk 0:09:53.5]} 15... fxe5
{[%clk 0:09:12.7]} 16. Ne4 {[%clk 0:09:54]} 16... O-O-O {[%clk 0:09:09.4]} 17.
Qf3 {[%clk 0:09:31.6]} 17... Bf5 {[%clk 0:09:06.2]} 18. Re3 {[%clk 0:08:48.6]}
18... Rhf8 {[%clk 0:09:03.9]} 19. Ba6+ {[%clk 0:07:44.6]} 19... Kd7 {[%clk
0:08:53]} 20. Nc5+ {[%clk 0:06:55.2]} 20... Ke8 {[%clk 0:08:53.2]} 21. Qe2
{[%clk 0:06:10]} 21... Rd5 {[%clk 0:08:48.7]} 22. Ne4 {[%clk 0:05:52.9]} 22...
Bxe4 {[%clk 0:08:20.9]} 23. Rxe4 {[%clk 0:05:50.7]} 23... Rf4 {[%clk 0:08:21.5]}
24. Bc4 {[%clk 0:05:20.7]} 24... Rd4 {[%clk 0:08:11.7]} 25. Rxd4 {[%clk
0:05:08.7]} 25... exd4 {[%clk 0:07:41.7]} 26. Re1 {[%clk 0:05:03.7]} 26... e5
{[%clk 0:07:36.7]} 27. Bb3 {[%clk 0:04:51.5]} 27... Rf8 {[%clk 0:07:16.1]} 28.
Qc4 {[%clk 0:04:42]} 28... Kd8 {[%clk 0:07:15.2]} 29. c3 {[%clk 0:04:38.3]}
29... Kc8 {[%clk 0:06:57.3]} 30. Ba4 {[%clk 0:04:22.1]} 30... c5 {[%clk
0:06:49]} 31. cxd4 {[%clk 0:04:09.9]} 31... exd4 {[%clk 0:06:45.2]} 32. Qa6+
{[%clk 0:03:43]} 32... Kb8 {[%clk 0:06:43.7]} 33. Bc6 {[%clk 0:03:13.7]} 33...
Qb6 {[%clk 0:06:27.5]} 34. Qxb6+ {[%clk 0:03:02]} 34... axb6 {[%clk 0:06:28.4]}
35. Re7 {[%clk 0:03:02.7]} 35... Bf6 {[%clk 0:06:25.7]} 36. Re2 {[%clk
0:01:57.7]} 36... Kc7 {[%clk 0:06:21.2]} 37. Bb5 {[%clk 0:01:56.2]} 37... h5
{[%clk 0:06:11.3]} 38. Kf1 {[%clk 0:01:52.8]} 38... g5 {[%clk 0:06:09.5]} 39. b3
{[%clk 0:01:44.6]} 39... Kd6 {[%clk 0:06:09.8]} 40. Re8 {[%clk 0:01:13.8]} 40...
Rxe8 {[%clk 0:05:56.1]} 41. Bxe8 {[%clk 0:01:14]} 41... h4 {[%clk 0:05:57.3]}
42. Ke2 {[%clk 0:01:14.6]} 42... Be5 {[%clk 0:05:54.1]} 43. g3 {[%clk
0:01:14.2]} 43... hxg3 {[%clk 0:05:54.4]} 44. hxg3 {[%clk 0:01:12.7]} 44... Bf6
{[%clk 0:05:53.3]} 45. Kd3 {[%clk 0:01:13.3]} 45... Bd8 {[%clk 0:05:53.4]} 46.
Ke4 {[%clk 0:01:12.3]} 46... Be7 {[%clk 0:05:54.4]} 47. Bb5 {[%clk 0:01:12.3]}
47... Bf6 {[%clk 0:05:55]} 48. Bd3 {[%clk 0:01:13]} 48... Bd8 {[%clk 0:05:54.7]}
49. Kf5 {[%clk 0:01:09.6]} 49... Kc6 {[%clk 0:05:53.9]} 50. Ke6 {[%clk
0:01:05.1]} 50... b5 {[%clk 0:05:50.9]} 51. f4 {[%clk 0:01:03.2]} 51... gxf4
{[%clk 0:05:50.5]} 52. gxf4 {[%clk 0:01:03.9]} 52... Kb6 {[%clk 0:05:37.9]} 53.
Kd5 {[%clk 0:00:41.8]} 53... Bf6 {[%clk 0:05:34.3]} 54. f5 {[%clk 0:00:41.9]}
54... Bg7 {[%clk 0:05:34.1]} 55. Kd6 {[%clk 0:00:40.4]} 55... Bf8+ {[%clk
0:05:32.3]} 56. Ke6 {[%clk 0:00:40.9]} 56... Ka5 {[%clk 0:05:33.2]} 57. f6
{[%clk 0:00:36.6]} 57... Kb4 {[%clk 0:05:33.1]} 58. Kd5 {[%clk 0:00:37.4]} 58...
Kc3 {[%clk 0:05:23.6]} 59. Bxb5 {[%clk 0:00:35]} 59... d3 {[%clk 0:05:24.9]} 60.
Bxd3 {[%clk 0:00:30]} 60... Kxd3 {[%clk 0:05:25.2]} 61. a4 {[%clk 0:00:31.5]}
61... Kc3 {[%clk 0:05:23.1]} 62. a5 {[%clk 0:00:31.7]} 62... Kxb3 {[%clk
0:05:23.5]} 63. a6 {[%clk 0:00:33]} 63... c4 {[%clk 0:05:24.9]} 64. a7 {[%clk
0:00:34.3]} 64... c3 {[%clk 0:05:26.3]} 65. a8=Q {[%clk 0:00:35.2]} 65... c2
{[%clk 0:05:27.6]} 66. Qb8+ {[%clk 0:00:34.7]} 66... Bb4 {[%clk 0:05:27.1]} 67.
Qc7 {[%clk 0:00:18.3]} 67... Bc3 {[%clk 0:05:24]} 68. Qb6+ {[%clk 0:00:17.9]}
68... Ka2 {[%clk 0:05:24.9]} 69. Kc4 {[%clk 0:00:14.8]} 69... Bb2 {[%clk
0:05:13.4]} 70. Qb3+ {[%clk 0:00:11.1]} 70... Kb1 {[%clk 0:05:14.3]} 71. Qd3
{[%clk 0:00:08]} 71... Bxf6 {[%clk 0:05:13.2]} 72. Kb3 {[%clk 0:00:08.3]} 72...
Ka1 {[%clk 0:05:14]} 73. Qxc2 {[%clk 0:00:08.1]} 73... Be5 {[%clk 0:05:15.3]}
74. Qa2# {[%clk 0:00:09]} 1-0

[Event "GrandPrix_30.05"]
[Site "Chess.com"]
[Date "2020.05.30"]
[Round "4"]
[White "KJakubowski"]
[Black "Korchmar_Vasiliy"]
[Result "1-0"]
[WhiteElo "2408"]
[BlackElo "2108"]
[TimeControl "600+2"]
[EndTime "9:51:59 PDT"]
[Termination "KJakubowski won on time"]

1. d4 {[%clk 0:09:58.2]} 1... Nf6 {[%clk 0:10:00.4]} 2. Nf3 {[%clk 0:09:57.8]}
2... d5 {[%clk 0:10:01.2]} 3. c4 {[%clk 0:09:56.2]} 3... e6 {[%clk 0:10:02.3]}
4. Nc3 {[%clk 0:09:54.6]} 4... Bb4 {[%clk 0:10:02.9]} 5. cxd5 {[%clk 0:09:54]}
5... exd5 {[%clk 0:10:03.6]} 6. Bg5 {[%clk 0:09:46.3]} 6... h6 {[%clk 0:10:03]}
7. Bh4 {[%clk 0:09:38.3]} 7... O-O {[%clk 0:10:03.6]} 8. e3 {[%clk 0:09:29.2]}
8... Bf5 {[%clk 0:10:04.3]} 9. Qb3 {[%clk 0:09:11.6]} 9... Bxc3+ {[%clk
0:09:45.8]} 10. bxc3 {[%clk 0:09:10.6]} 10... Nbd7 {[%clk 0:09:32.6]} 11. Qxb7
{[%clk 0:09:02.8]} 11... Rb8 {[%clk 0:03:53.2]} 12. Qa6 {[%clk 0:07:31.1]} 12...
Rb2 {[%clk 0:02:55.2]} 13. Bb5 {[%clk 0:05:18.1]} 13... c6 {[%clk 0:02:28.9]}
14. Qa4 {[%clk 0:04:26.3]} 14... Rxb5 {[%clk 0:02:11.3]} 15. Ne5 {[%clk
0:04:21.2]} 15... Qb6 {[%clk 0:02:01.5]} 16. O-O {[%clk 0:04:13]} 16... Nxe5
{[%clk 0:02:00.4]} 17. dxe5 {[%clk 0:04:10.1]} 17... Ne4 {[%clk 0:02:01.6]} 18.
Qa3 {[%clk 0:03:50.8]} 18... Nd2 {[%clk 0:01:26.1]} 19. Rfd1 {[%clk 0:03:46.8]}
19... Nc4 {[%clk 0:01:26.9]} 20. Qc1 {[%clk 0:03:35.6]} 20... Rb2 {[%clk
0:01:24.5]} 21. a4 {[%clk 0:03:31.9]} 21... Rc2 {[%clk 0:01:12.4]} 22. Qb1
{[%clk 0:03:28.7]} 22... Rb8 {[%clk 0:01:01.9]} 23. Qxb6 {[%clk 0:03:22.8]}
23... Rxb6 {[%clk 0:01:01.4]} 24. a5 {[%clk 0:03:09.2]} 24... Rbb2 {[%clk
0:01:01.5]} 25. a6 {[%clk 0:03:09.8]} 25... Nxe5 {[%clk 0:00:59.5]} 26. h3
{[%clk 0:02:59.6]} 26... Nc4 {[%clk 0:00:59]} 27. Ra4 {[%clk 0:02:54.9]} 27...
Rxc3 {[%clk 0:00:46.7]} 28. Rd4 {[%clk 0:02:44.1]} 28... Rc1+ {[%clk 0:00:24.9]}
29. Kh2 {[%clk 0:02:44.1]} 29... Bc2 {[%clk 0:00:25]} 30. Raxc4 {[%clk
0:02:37.9]} 30... dxc4 {[%clk 0:00:26.9]} 31. Rxc4 {[%clk 0:02:39.1]} 31... Rb6
{[%clk 0:00:16.7]} 32. Bg3 {[%clk 0:02:36.1]} 32... Rxa6 {[%clk 0:00:17]} 33.
Be5 {[%clk 0:02:37.5]} 33... Rb6 {[%clk 0:00:12.1]} 34. e4 {[%clk 0:02:28.8]}
34... Rbb1 {[%clk 0:00:10]} 35. Bf4 {[%clk 0:02:26.3]} 1-0